fUST/lending_fUST_20240613
["ID","MTS","AMOUNT","RATE_DAILY","PERIOD"]
[329316420,1718239848759,-500.0,0.00016986,2]
[329316421,1718239848778,-151.0,0.00016986,2]
[329316422,1718239848810,-2780.37,0.00016986,2]
[329316423,1718239848830,-151.0,0.00016986,2]
[329316426,1718239848865,-579.25,0.00016986,2]
[329316427,1718239848889,-500.0,0.00016986,2]
[329316428,1718239848925,-500.0,0.00016986,2]
[329316429,1718239848954,-607.02,0.00016986,2]
[329316430,1718239848973,-513.02201012,0.00016986,2]
[329316431,1718239848986,-515.39,0.00016986,2]
[329316432,1718239848997,-500.0,0.00016986,2]
[329316433,1718239849023,-500.0,0.00016986,2]
[329316434,1718239849035,-500.0,0.00016986,2]
[329316435,1718239849051,-1449.2,0.00016986,2]
[329316436,1718239849081,-500.0,0.00016986,2]
[329316437,1718239849098,-500.0,0.00016986,2]
[329316438,1718239849115,-1961.36,0.00016986,2]
[329316439,1718239849151,-4220.21,0.00016986,2]
[329316440,1718239849187,-500.0,0.00016986,2]
[329316441,1718239849202,-500.0,0.00016986,2]
[329316442,1718239849228,-151.0,0.00016986,2]
[329316443,1718239849257,-500.0,0.00016986,2]
[329316444,1718239849290,-500.0,0.00016986,2]
[329316445,1718239849307,-166.901902,0.00016986,2]
[329316446,1718239849322,-500.0,0.00016986,2]
[329316447,1718239849333,-500.0,0.00016986,2]
[329316448,1718239849347,-610.76,0.00016986,2]
[329316449,1718239849359,-166.901902,0.00016986,2]
[329316450,1718239849373,-521.42,0.00016986,2]
[329316451,1718239849390,-500.0,0.00016986,2]
[329316452,1718239849407,-500.0,0.00016986,2]
[329316453,1718239849427,-500.0,0.00016986,2]
[329316454,1718239849440,-500.0,0.00016986,2]
[329316455,1718239849469,-1993.8,0.00016986,2]
[329316456,1718239849485,-500.0,0.00016986,2]
[329316457,1718239849498,-500.0,0.00016986,2]
[329316458,1718239849518,-500.0,0.00016986,2]
[329316459,1718239849535,-500.0,0.00016986,2]
[329316461,1718239849560,-500.0,0.00016986,2]
[329316462,1718239849580,-500.0,0.00016986,2]
[329316463,1718239849614,-500.0,0.00016986,2]
[329316464,1718239849628,-238.95742665,0.00016999,2]
[329316465,1718239849642,-16232.6,0.00017,2]
[329316467,1718239849658,-2448.73518948,0.00017083,2]
[329316468,1718239849680,-500.0,0.00017091,2]
[329316469,1718239849709,-5066.24101315,0.00017205,2]
[329316470,1718239849729,-500.0,0.00017259,2]
[329316471,1718239849741,-500.0,0.0001726,2]
[329316472,1718239849756,-555.86,0.0001726,2]
[329316473,1718239849774,-500.0,0.0001726,2]
[329316474,1718239849786,-500.0,0.0001726,2]
[329316475,1718239849800,-257.82305983,0.0001726,2]
[329316476,1718239849811,-500.0,0.0001726,2]
[329316477,1718239849945,-500.0,0.0001726,2]
[329316478,1718239849958,-470.71,0.0001726,2]
[329316479,1718239849970,-500.0,0.0001726,2]
[329316480,1718239849980,-500.0,0.0001726,2]
[329316481,1718239849995,-500.0,0.0001726,2]
[329316482,1718239850008,-500.0,0.0001726,2]
[329316483,1718239850019,-162.19186766,0.0001726,2]
[329316484,1718239850033,-500.0,0.0001726,2]
[329316485,1718239850044,-500.0,0.0001726,2]
[329316486,1718239850069,-500.0,0.0001726,2]
[329316487,1718239850082,-560.68,0.0001726,2]
[329316488,1718239850093,-500.0,0.0001726,2]
[329316489,1718239850105,-500.0,0.0001726,2]
[329316490,1718239850116,-500.0,0.0001726,2]
[329316491,1718239850137,-500.0,0.0001726,2]
[329316492,1718239850160,-617.0,0.0001726,2]
[329316493,1718239850182,-500.0,0.0001726,2]
[329316494,1718239850198,-500.0,0.0001726,2]
[329316495,1718239850209,-500.0,0.0001726,2]
[329316496,1718239850224,-500.0,0.0001726,2]
[329316497,1718239850237,-500.0,0.0001726,2]
[329316498,1718239850251,-1075.12,0.0001726,2]
[329316499,1718239850273,-500.0,0.0001726,2]
[329316500,1718239850284,-500.0,0.0001726,2]
[329316501,1718239850297,-500.0,0.0001726,2]
[329316502,1718239850308,-500.0,0.0001726,2]
[329316503,1718239850319,-500.0,0.0001726,2]
[329316504,1718239850332,-730.68,0.0001726,2]
[329316505,1718239850343,-500.0,0.0001726,2]
[329316506,1718239850355,-976.4,0.0001726,2]
[329316507,1718239850367,-500.0,0.0001726,2]
[329316508,1718239850378,-869.99,0.0001726,2]
[329316509,1718239850389,-500.0,0.0001726,2]
[329316510,1718239850400,-500.0,0.0001726,2]
[329316511,1718239850413,-2160.24,0.0001726,2]
[329316512,1718239850426,-500.0,0.0001726,2]
[329316513,1718239850439,-500.0,0.0001726,2]
[329316514,1718239850452,-369.19017065,0.0001726,2]
[329316515,1718239850465,-5967.05,0.0001726,2]
[329316516,1718239850477,-500.0,0.0001726,2]
[329316517,1718239850491,-151.0,0.0001726,2]
[329316518,1718239850504,-500.0,0.0001726,2]
[329316519,1718239850516,-151.0,0.0001726,2]
[329316520,1718239850528,-2780.37,0.0001726,2]
[329316521,1718239850541,-151.0,0.0001726,2]
[329316522,1718239850557,-579.25,0.0001726,2]
[329316523,1718239850570,-500.0,0.0001726,2]
[329316524,1718239850581,-607.02,0.0001726,2]
[329316525,1718239850592,-515.39,0.0001726,2]
[329316526,1718239850604,-500.0,0.0001726,2]
[329316527,1718239850615,-500.0,0.0001726,2]
[329316528,1718239850626,-1449.2,0.0001726,2]
[329316529,1718239850638,-500.0,0.0001726,2]
[329316530,1718239850652,-408.02463795,0.0001726,2]
[329316531,1718239850663,-1961.36,0.0001726,2]
[329316532,1718239850676,-4220.21,0.0001726,2]
[329316533,1718239850689,-500.0,0.0001726,2]
[329316534,1718239850701,-475.87266634,0.0001726,2]
[329316535,1718239850713,-500.0,0.0001726,2]
[329316536,1718239850725,-500.0,0.0001726,2]
[329316537,1718239850737,-166.901902,0.0001726,2]
[329316538,1718239850749,-500.0,0.0001726,2]
[329316539,1718239850761,-610.76,0.0001726,2]
[329316540,1718239850771,-166.901902,0.0001726,2]
[329316541,1718239850782,-521.42,0.0001726,2]
[329316542,1718239850793,-500.0,0.0001726,2]
[329316543,1718239850804,-393.30660927,0.0001726,2]
[329316544,1718239850816,-500.0,0.0001726,2]
[329316545,1718239850827,-1993.8,0.0001726,2]
[329316546,1718239850837,-500.0,0.0001726,2]
[329316547,1718239850848,-500.0,0.0001726,2]
[329316548,1718239850860,-500.0,0.0001726,2]
[329316549,1718239850871,-500.0,0.0001726,2]
[329316550,1718239850882,-500.0,0.0001726,2]
[329316551,1718239850893,-500.0,0.0001726,2]
[329316552,1718239850905,-500.0,0.00017533,2]
[329316553,1718239850921,-500.0,0.00017534,2]
[329316554,1718239850952,-151.0,0.00017534,2]
[329316555,1718239850964,-555.86,0.00017534,2]
[329316556,1718239850976,-500.0,0.00017534,2]
[329316557,1718239850989,-500.0,0.00017534,2]
[329316558,1718239851000,-500.0,0.00017534,2]
[329316559,1718239851011,-500.0,0.00017534,2]
[329316560,1718239851024,-200.66772711,0.00017534,2]
[329316561,1718239851036,-151.0,0.00017534,2]
[329316562,1718239851048,-500.0,0.00017534,2]
[329316563,1718239851060,-151.0,0.00017534,2]
[329316564,1718239851071,-151.0,0.00017534,2]
[329316565,1718239851084,-500.0,0.00017534,2]
[329316566,1718239851096,-164.139363,0.00017534,2]
[329316567,1718239851110,-500.0,0.00017534,2]
[329316568,1718239851121,-560.68,0.00017534,2]
[329316569,1718239851133,-151.0,0.00017534,2]
[329316570,1718239851145,-500.0,0.00017534,2]
[329316571,1718239851157,-500.0,0.00017534,2]
[329316572,1718239851169,-617.0,0.00017534,2]
[329316573,1718239851180,-151.0,0.00017534,2]
[329316574,1718239851193,-500.0,0.00017534,2]
[329316575,1718239851206,-151.0,0.00017534,2]
[329316576,1718239851217,-151.0,0.00017534,2]
[329316577,1718239851229,-500.0,0.00017534,2]
[329316578,1718239851240,-500.0,0.00017534,2]
[329316579,1718239851251,-1075.12,0.00017534,2]
[329316580,1718239851262,-500.0,0.00017534,2]
[329316581,1718239851273,-500.0,0.00017534,2]
[329316582,1718239851287,-500.0,0.00017534,2]
[329316583,1718239851299,-500.0,0.00017534,2]
[329316584,1718239851310,-500.0,0.00017534,2]
[329316585,1718239851321,-730.68,0.00017534,2]
[329316586,1718239851331,-500.0,0.00017534,2]
[329316587,1718239851342,-171.534889,0.00017534,2]
[329316588,1718239851353,-976.4,0.00017534,2]
[329316589,1718239851363,-500.0,0.00017534,2]
[329316590,1718239851373,-869.99,0.00017534,2]
[329316591,1718239851384,-500.0,0.00017534,2]
[329316592,1718239851394,-151.0,0.00017534,2]
[329316593,1718239851405,-530.28,0.00017534,2]
[329316594,1718239851418,-2160.24,0.00017534,2]
[329316595,1718239851430,-500.0,0.00017534,2]
[329316596,1718239851440,-500.0,0.00017534,2]
[329316597,1718239851451,-500.0,0.00017534,2]
[329316598,1718239851461,-5967.05,0.00017534,2]
[329316599,1718239851471,-2780.37,0.00017534,2]
[329316600,1718239851482,-579.25,0.00017534,2]
[329316601,1718239851495,-500.0,0.00017534,2]
[329316602,1718239851507,-607.02,0.00017534,2]
[329316603,1718239851518,-515.39,0.00017534,2]
[329316604,1718239851528,-1449.2,0.00017534,2]
[329316605,1718239851540,-500.0,0.00017534,2]
[329316606,1718239851552,-1961.36,0.00017534,2]
[329316607,1718239851563,-4220.21,0.00017534,2]
[329316608,1718239851575,-500.0,0.00017534,2]
[329316609,1718239851588,-500.0,0.00017534,2]
[329316610,1718239851600,-610.76,0.00017534,2]
[329316611,1718239851611,-521.42,0.00017534,2]
[329316612,1718239851621,-500.0,0.00017534,2]
[329316613,1718239851632,-500.0,0.00017534,2]
[329316614,1718239851643,-1993.8,0.00017534,2]
[329316615,1718239851655,-500.0,0.00017534,2]
[329316616,1718239851669,-500.0,0.00017534,2]
[329316617,1718239851681,-332.93429418,0.00017534,2]
[329316618,1718239851693,-500.0,0.00017534,2]
[329316619,1718239851707,-2448.73518948,0.00017565,2]
[329316620,1718239851719,-153.0,0.0001758,2]
[329316621,1718239851731,-306.0,0.0001758,2]
[329316622,1718239851742,-153.0,0.0001758,2]
[329316623,1718239851753,-153.0,0.0001758,2]
[329316624,1718239851763,-314.7971623,0.00017612,2]
[329316625,1718239851774,-500.0,0.0001763,7]
[329316626,1718239851789,-500.0,0.0001763,7]
[329316627,1718239851802,-500.0,0.0001763,7]
[329316628,1718239851814,-500.0,0.0001763,7]
[329316629,1718239851827,-500.0,0.0001763,7]
[329316630,1718239851838,-500.0,0.0001763,7]
[329316631,1718239851849,-500.0,0.0001763,7]
[329316632,1718239851860,-500.0,0.0001763,7]
[329316633,1718239851870,-500.0,0.0001763,7]
[329316634,1718239851881,-500.0,0.0001763,7]
[329316635,1718239851891,-500.0,0.0001763,7]
[329316636,1718239851901,-500.0,0.0001763,7]
[329316637,1718239851911,-500.0,0.0001763,7]
[329316638,1718239851923,-420.05,0.0001763,7]
[329316639,1718239851953,-500.0,0.0001763,7]
[329316640,1718239851968,-151.0,0.0001763,2]
[329316641,1718239851984,-500.0,0.0001763,7]
[329316642,1718239851995,-413.96,0.0001763,7]
[329316643,1718239852006,-620.07271939,0.00017749,2]
[329316644,1718239852021,-500.0,0.00017807,2]
[329316645,1718239852034,-508.594545,0.00017808,2]
[329316646,1718239852044,-555.86,0.00017808,2]
[329316647,1718239852054,-500.0,0.00017808,2]
[329316648,1718239852070,-500.0,0.00017808,2]
[329316649,1718239852081,-500.0,0.00017808,2]
[329316650,1718239852091,-500.0,0.00017808,2]
[329316651,1718239852101,-500.0,0.00017808,2]
[329316652,1718239852112,-500.0,0.00017808,2]
[329316653,1718239852123,-560.68,0.00017808,2]
[329316654,1718239852134,-500.0,0.00017808,2]
[329316655,1718239852145,-259.11701284,0.00017808,2]
[329316656,1718239852156,-617.0,0.00017808,2]
[329316657,1718239852167,-500.0,0.00017808,2]
[329316658,1718239852180,-500.0,0.00017808,2]
[329316659,1718239852191,-1075.12,0.00017808,2]
[329316660,1718239852207,-500.0,0.00017808,2]
[329316661,1718239852218,-500.0,0.00017808,2]
[329316662,1718239852229,-500.0,0.00017808,2]
[329316663,1718239852244,-500.0,0.00017808,2]
[329316664,1718239852254,-730.68,0.00017808,2]
[329316665,1718239852267,-500.0,0.00017808,2]
[329316666,1718239852278,-976.4,0.00017808,2]
[329316667,1718239852290,-500.0,0.00017808,2]
[329316668,1718239852301,-869.99,0.00017808,2]
[329316669,1718239852311,-500.0,0.00017808,2]
[329316670,1718239852321,-151.0,0.00017808,2]
[329316671,1718239852332,-2160.24,0.00017808,2]
[329316672,1718239852342,-500.0,0.00017808,2]
[329316673,1718239852353,-500.0,0.00017808,2]
[329316674,1718239852364,-500.0,0.00017808,2]
[329316675,1718239852376,-5967.05,0.00017808,2]
[329316676,1718239852386,-151.0,0.00017808,2]
[329316677,1718239852418,-2780.37,0.00017808,2]
[329316678,1718239852430,-151.0,0.00017808,2]
[329316679,1718239852460,-579.25,0.00017808,2]
[329316680,1718239852471,-500.0,0.00017808,2]
[329316681,1718239852483,-607.02,0.00017808,2]
[329316682,1718239852494,-515.39,0.00017808,2]
[329316683,1718239852505,-1449.2,0.00017808,2]
[329316684,1718239852515,-500.0,0.00017808,2]
[329316685,1718239852528,-1961.36,0.00017808,2]
[329316686,1718239852541,-4220.21,0.00017808,2]
[329316687,1718239852551,-166.901902,0.00017808,2]
[329316688,1718239852566,-531.41,0.00017808,2]
[329316689,1718239852577,-500.0,0.00017808,2]
[329316690,1718239852588,-610.76,0.00017808,2]
[329316691,1718239852599,-166.901902,0.00017808,2]
[329316692,1718239852612,-521.42,0.00017808,2]
[329316693,1718239852631,-500.0,0.00017808,2]
[329316694,1718239852642,-1993.8,0.00017808,2]
[329316695,1718239852652,-500.0,0.00017808,2]
[329316696,1718239852663,-464.43241486,0.00017808,2]
[329316697,1718239852674,-500.0,0.00017808,2]
[329316698,1718239852684,-500.0,0.00017899,2]
[329316699,1718239852695,-500.0,0.00017899,2]
[329316700,1718239852705,-151.0,0.000179,2]
[329316701,1718239852718,-151.0,0.000179,2]
[329316702,1718239852728,-197.0,0.000179,2]
[329316703,1718239852739,-500.0,0.00017999,2]
[329316704,1718239852754,-2765.44251206,0.00018,2]
[329316705,1718239852771,-31895.25799427,0.00018,2]
[329316706,1718239852788,-876.82850055,0.00018,2]
[329316707,1718239852799,-1355.61945113,0.00018,2]
[329316708,1718239852811,-151.0,0.00018,2]
[329316709,1718239852824,-151.0,0.00018,2]
[329316710,1718239852837,-151.0,0.00018,2]
[329316711,1718239852849,-2448.73518948,0.00018048,2]
[329316712,1718239852861,-500.0,0.00018081,2]
[329316713,1718239852872,-420.0,0.00018081,2]
[329316714,1718239852883,-555.86,0.00018082,2]
[329316715,1718239852895,-500.0,0.00018082,2]
[329316716,1718239852906,-500.0,0.00018082,2]
[329316717,1718239852917,-477.3871652,0.00018082,2]
[329316718,1718239852946,-500.0,0.00018082,2]
[329316719,1718239852958,-500.0,0.00018082,2]
[329316720,1718239852972,-500.0,0.00018082,2]
[329316721,1718239852983,-560.68,0.00018082,2]
[329316722,1718239852995,-500.0,0.00018082,2]
[329316723,1718239853006,-617.0,0.00018082,2]
[329316724,1718239853016,-500.0,0.00018082,2]
[329316725,1718239853029,-500.0,0.00018082,2]
[329316726,1718239853041,-1075.12,0.00018082,2]
[329316727,1718239853053,-500.0,0.00018082,2]
[329316728,1718239853067,-500.0,0.00018082,2]
[329316729,1718239853081,-500.0,0.00018082,2]
[329316730,1718239853094,-730.68,0.00018082,2]
[329316731,1718239853105,-500.0,0.00018082,2]
[329316732,1718239853120,-976.4,0.00018082,2]
[329316733,1718239853131,-500.0,0.00018082,2]
[329316734,1718239853143,-869.99,0.00018082,2]
[329316735,1718239853156,-500.0,0.00018082,2]
[329316736,1718239853168,-151.0,0.00018082,2]
[329316737,1718239853179,-2160.24,0.00018082,2]
[329316738,1718239853190,-500.0,0.00018082,2]
[329316739,1718239853201,-500.0,0.00018082,2]
[329316740,1718239853212,-5967.05,0.00018082,2]
[329316741,1718239853223,-151.0,0.00018082,2]
[329316742,1718239853234,-2780.37,0.00018082,2]
[329316743,1718239853245,-151.0,0.00018082,2]
[329316744,1718239853255,-579.25,0.00018082,2]
[329316745,1718239853269,-500.0,0.00018082,2]
[329316746,1718239853279,-607.02,0.00018082,2]
[329316747,1718239853291,-515.39,0.00018082,2]
[329316748,1718239853302,-1449.2,0.00018082,2]
[329316749,1718239853313,-500.0,0.00018082,2]
[329316750,1718239853324,-1961.36,0.00018082,2]
[329316751,1718239853336,-4220.21,0.00018082,2]
[329316752,1718239853347,-166.901902,0.00018082,2]
[329316753,1718239853358,-610.76,0.00018082,2]
[329316754,1718239853369,-166.901902,0.00018082,2]
[329316755,1718239853380,-521.42,0.00018082,2]
[329316756,1718239853390,-500.0,0.00018082,2]
[329316757,1718239853401,-1993.8,0.00018082,2]
[329316758,1718239853417,-417.39096381,0.00018082,2]
[329316759,1718239853694,-258.75359852,0.00016712,2]
[329316760,1718239853709,-241.24640148,0.00016712,2]
[329316761,1718239853723,-82.60903619,0.00018082,2]
[329316762,1718239853733,-500.0,0.00018082,2]
[329316763,1718239853744,-593.0,0.000181,2]
[329316764,1718239853754,-500.0,0.00018355,2]
[329316765,1718239853767,-151.0,0.00018356,2]
[329316766,1718239853781,-555.86,0.00018356,2]
[329316767,1718239853797,-500.0,0.00018356,2]
[329316768,1718239853808,-500.0,0.00018356,2]
[329316769,1718239853818,-500.0,0.00018356,2]
[329316770,1718239853829,-95.90192903,0.00018356,2]
[329316771,1718239854011,-500.0,0.00016438,2]
[329316772,1718239854023,-500.0,0.00016712,2]
[329316773,1718239854036,-500.0,0.00016986,2]
[329316774,1718239854052,-14.73019099,0.0001726,2]
[329316775,1718239854498,-119.38528939,0.00016438,2]
[329316776,1718239854548,-257.82305983,0.00016438,2]
[329316779,1718240795227,-166.544429,0.00015498,2]
[329316780,1718240795259,-59.8521194,0.00015547,2]
[329316850,1718241041566,-176.1404192,0.00015547,2]
[329316851,1718241041578,-2448.73518952,0.00016338,2]
[329316852,1718241041589,-460.61039764,0.00016436,2]
[329316853,1718241041602,-300.0,0.00016437,2]
[329316854,1718241041613,-500.0,0.00016438,2]
[329316855,1718241041630,-500.0,0.00016438,2]
[329316856,1718241041641,-500.0,0.00016438,2]
[329316857,1718241041652,-500.0,0.00016438,2]
[329316858,1718241041663,-498.87519425,0.00016438,2]
[329316859,1718241041674,-500.0,0.00016438,2]
[329316860,1718241041685,-500.0,0.00016438,2]
[329316861,1718241041699,-500.0,0.00016438,2]
[329316862,1718241041714,-500.0,0.00016438,2]
[329316863,1718241041735,-500.0,0.00016438,2]
[329316864,1718241041754,-500.0,0.00016438,2]
[329316865,1718241041765,-500.0,0.00016438,2]
[329316866,1718241041776,-501.35862995,0.00016438,2]
[329316867,1718241041786,-500.0,0.00016438,2]
[329316868,1718241041801,-500.0,0.00016438,2]
[329316869,1718241041815,-500.0,0.00016438,2]
[329316870,1718241041829,-500.0,0.00016438,2]
[329316871,1718241041861,-500.0,0.00016438,2]
[329316872,1718241041872,-304.88108891,0.00016438,2]
[329316873,1718241041883,-500.0,0.00016438,2]
[329316874,1718241041894,-500.0,0.00016438,2]
[329316875,1718241041904,-525.84493326,0.00016438,2]
[329316876,1718241041915,-500.0,0.00016438,4]
[329316877,1718241041926,-500.0,0.00016438,2]
[329316878,1718241041938,-500.0,0.00016438,2]
[329316879,1718241041950,-537.34518742,0.00016438,2]
[329316880,1718241041960,-500.0,0.00016438,2]
[329316881,1718241041971,-500.0,0.00016438,2]
[329316882,1718241041981,-500.0,0.00016438,2]
[329316883,1718241041993,-501.74210217,0.00016438,2]
[329316884,1718241042005,-500.0,0.00016438,2]
[329316885,1718241042015,-506.88216702,0.00016438,2]
[329316886,1718241042026,-500.0,0.00016438,2]
[329316887,1718241042036,-500.0,0.00016438,2]
[329316888,1718241042047,-500.0,0.00016438,2]
[329316889,1718241042058,-500.0,0.00016438,2]
[329316890,1718241042068,-500.0,0.00016438,2]
[329316891,1718241042079,-500.0,0.00016438,2]
[329316892,1718241042089,-526.31069258,0.00016438,2]
[329316893,1718241042100,-500.0,0.00016438,2]
[329316894,1718241042110,-501.79030677,0.00016438,2]
[329316895,1718241042120,-500.0,0.00016438,2]
[329316896,1718241042137,-500.0,0.00016438,2]
[329316897,1718241042152,-315.55547614,0.00016438,2]
[329316898,1718241042163,-500.0,0.00016438,2]
[329316899,1718241042174,-500.0,0.00016438,2]
[329316900,1718241042184,-502.22495603,0.00016438,2]
[329316901,1718241042200,-532.96,0.00016438,2]
[329316902,1718241042217,-503.39915285,0.00016438,2]
[329316903,1718241042230,-1003.81612686,0.00016438,2]
[329316904,1718241042243,-500.0,0.00016438,2]
[329316905,1718241042257,-500.0,0.00016438,2]
[329316906,1718241042279,-500.0,0.00016438,2]
[329316907,1718241042289,-608.85,0.00016438,2]
[329316908,1718241042300,-500.0,0.00016438,2]
[329316909,1718241042310,-500.0,0.00016438,2]
[329316910,1718241042321,-500.0,0.00016438,2]
[329316911,1718241042331,-530.71258531,0.00016438,2]
[329316912,1718241042342,-500.0,0.00016438,2]
[329316913,1718241042512,-500.0,0.00016438,2]
[329316914,1718241042524,-307.12375771,0.00016438,2]
[329316915,1718241042536,-500.0,0.00016438,2]
[329316916,1718241042547,-500.0,0.00016438,2]
[329316917,1718241042560,-504.93139688,0.00016438,2]
[329316918,1718241042571,-500.0,0.00016438,2]
[329316919,1718241042597,-500.0,0.00016438,2]
[329316920,1718241042608,-500.0,0.00016438,2]
[329316921,1718241042620,-471.67162943,0.00016438,2]
[329316922,1718241042634,-495.71445367,0.00016438,2]
[329316923,1718241042645,-500.0,0.00016438,2]
[329316924,1718241042656,-500.0,0.00016438,2]
[329316925,1718241042667,-502.681243,0.00016438,2]
[329316926,1718241042678,-687.83,0.00016438,2]
[329316927,1718241042689,-500.0,0.00016438,2]
[329316928,1718241042702,-500.0,0.00016438,2]
[329316929,1718241042714,-500.94295878,0.00016438,2]
[329316930,1718241042726,-500.0,0.00016438,2]
[329316931,1718241042737,-500.0,0.00016438,2]
[329316932,1718241042748,-501.3201634,0.00016438,2]
[329316933,1718241042758,-500.0,0.00016438,2]
[329316934,1718241042768,-508.75298861,0.00016438,2]
[329316935,1718241042788,-500.0,0.00016438,2]
[329316936,1718241042799,-485.26980901,0.00016438,2]
[329316937,1718241042813,-500.0,0.00016438,2]
[329316938,1718241042825,-500.0,0.00016438,2]
[329316939,1718241042837,-603.56616681,0.00016438,2]
[329316940,1718241042850,-500.0,0.00016438,2]
[329316941,1718241042861,-500.0,0.00016438,2]
[329316942,1718241042872,-500.0,0.00016438,2]
[329316943,1718241042883,-500.0,0.00016438,2]
[329316944,1718241042895,-500.0,0.00016438,2]
[329316945,1718241042906,-500.0,0.00016438,2]
[329316946,1718241042917,-500.0,0.00016438,2]
[329316947,1718241042929,-500.0,0.00016438,2]
[329316948,1718241042941,-500.0,0.00016438,2]
[329316949,1718241042951,-500.0,0.00016438,2]
[329316950,1718241042963,-500.0,0.00016438,2]
[329316951,1718241042973,-500.0,0.00016438,2]
[329316952,1718241042984,-500.0,0.00016438,2]
[329316953,1718241042996,-500.0,0.00016438,2]
[329316954,1718241043007,-500.0,0.00016438,2]
[329316955,1718241043018,-502.16644432,0.00016438,2]
[329316956,1718241043030,-500.0,0.00016438,2]
[329316957,1718241043040,-500.0,0.00016438,2]
[329316958,1718241043051,-500.0,0.00016438,2]
[329316959,1718241043062,-500.0,0.00016438,2]
[329316960,1718241043073,-500.0,0.00016438,2]
[329316961,1718241043083,-500.0,0.00016438,2]
[329316962,1718241043094,-500.0,0.00016438,2]
[329316963,1718241043104,-500.0,0.00016438,2]
[329316964,1718241043116,-500.0,0.00016438,2]
[329316965,1718241043131,-500.0,0.00016438,2]
[329316966,1718241043143,-500.0,0.00016438,2]
[329316967,1718241043155,-500.0,0.00016438,2]
[329316968,1718241043169,-500.0,0.00016438,2]
[329316969,1718241043180,-500.0,0.00016438,2]
[329316970,1718241043192,-550.14,0.00016438,2]
[329316971,1718241043205,-500.0,0.00016438,2]
[329316972,1718241043218,-500.0,0.00016438,2]
[329316973,1718241043229,-500.0,0.00016438,2]
[329316974,1718241043240,-500.0,0.00016438,2]
[329316975,1718241043252,-500.0,0.00016438,2]
[329316976,1718241043264,-500.0,0.00016438,2]
[329316977,1718241043276,-500.0,0.00016438,2]
[329316978,1718241043287,-504.00783836,0.00016438,2]
[329316979,1718241043299,-500.0,0.00016438,2]
[329316980,1718241043311,-500.0,0.00016438,2]
[329316981,1718241043322,-500.0,0.00016438,2]
[329316982,1718241043333,-500.0,0.00016438,2]
[329316983,1718241043346,-500.0,0.00016438,2]
[329316984,1718241043357,-500.0,0.00016438,2]
[329316985,1718241043376,-500.0,0.00016438,2]
[329316986,1718241043395,-500.0,0.00016438,2]
[329316987,1718241043406,-500.0,0.00016438,2]
[329316988,1718241043417,-500.0,0.00016438,2]
[329316989,1718241043428,-500.0,0.00016438,2]
[329316990,1718241043442,-500.0,0.00016438,2]
[329316991,1718241043453,-500.0,0.00016438,2]
[329316992,1718241043466,-500.0,0.00016438,2]
[329316993,1718241043478,-500.0,0.00016438,2]
[329316994,1718241043491,-500.85481312,0.00016438,2]